bitfinex/quotes_ETHUSD_20210401
["timestamp","ask_amount","ask_price","bid_price","bid_amount"]
[1617293985657,6.35,1946.4,1946.1,8.65751]
[1617293985854,6.35,1946.4,1946.3,5.01]
[1617293986058,2.55,1946.4,1946.3,12.71647]
[1617293987483,1.86310124,1946.4,1946.3,40.40917]
[1617293987685,1.86310124,1946.4,1946.3,45.10917]
[1617293987886,1.86310124,1946.4,1946.3,32.40917]
[1617293988085,5.1,1946.7,1946.4,18.9]
[1617293988383,5.1,1946.7,1946.6,13.06]
[1617293988586,5.1,1946.7,1946.6,21.44]
[1617293988784,5.1,1946.7,1946.6,22.2447]
[1617293989282,5.1,1946.7,1946.6,27.7447]
[1617293989482,5.1,1946.7,1946.6,27.7547]
[1617293990312,5.1,1946.7,1946.6,30.80076273]
[1617293990513,5.1,1946.7,1946.6,29.88076273]
[1617293991116,5.1,1946.7,1946.6,31.47076273]
[1617293991512,17.1033,1947.3,1946.7,12.5]
[1617293991714,0.14,1947.2,1946.9,5.43]
[1617293991913,0.14,1947.2,1947.0,0.28]
[1617293992314,0.14,1947.2,1946.9,5.01]
[1617293992532,0.14,1947.2,1947.0,11.55372]
[1617293993233,5.53454574,1947.2,1947.0,11.55372]
[1617293993435,0.39,1947.1,1946.8,5.01]
[1617293993643,0.39,1947.1,1946.7,7.70486]
[1617293993644,0.41,1947.0,1946.7,7.70486]
[1617293993934,0.39,1946.9,1946.5,10.27315]
[1617293994133,0.14,1946.9,1946.6,0.329]
[1617293994534,0.14,1946.9,1946.6,7.70552]
[1617293994734,0.14,1946.9,1946.5,10.27315]
[1617293994935,2.84454574,1946.7,1946.3,10.27228]
[1617293995160,0.53,1946.7,1946.4,0.322]
[1617293995360,0.39,1946.5,1946.0,0.18088548]
[1617293995662,0.39,1946.5,1945.9,5.13751]
[1617293995663,13.20420314,1946.3,1945.9,10.27676]
[1617293995861,13.20420314,1946.3,1945.6,4.02089033]
[1617293995862,18.90040314,1946.3,1945.6,4.02089033]
[1617293996090,0.736,1946.0,1945.6,4.02089033]
[1617293996295,0.301,1945.9,1945.3,3.51536125]
[1617293996491,0.343,1945.6,1945.2,1.02786873]
[1617293996689,0.343,1945.6,1945.2,0.14]
[1617293996989,0.343,1945.6,1945.2,7.85031]
[1617293997186,0.343,1945.6,1945.2,7.71031]
[1617293998108,0.38,1945.8,1945.3,0.14]
[1617293998310,0.28,1945.7,1945.4,0.14]
[1617293998608,0.28,1945.7,1945.3,0.14]
[1617293999009,0.38,1945.8,1945.3,0.14]
[1617293999213,0.28,1945.9,1945.4,7.84979]
[1617293999410,0.39,1946.0,1945.6,3.85398]
[1617293999610,24.4702,1946.3,1945.6,3.85398]
[1617293999611,14.4702,1946.3,1945.7,0.14]
[1617293999811,0.41,1946.2,1945.8,0.14]
[1617294000413,0.69,1946.2,1945.8,0.14]
[1617294000713,3.24,1946.2,1945.8,7.84796]
[1617294000912,2.96,1946.2,1946.0,5.01]
[1617294001714,5.68547235,1946.9,1945.8,5.15]
[1617294001914,0.14,1946.5,1946.1,0.39]
[1617294002313,0.14,1946.5,1946.1,5.4]
[1617294002513,0.14,1946.5,1946.1,0.39]
[1617294002932,0.54,1946.5,1946.0,7.70739]
[1617294003133,0.14,1946.5,1946.1,5.68]
[1617294003334,0.14,1946.5,1946.2,5.01]
[1617294003536,0.4,1946.4,1946.2,5.01]
[1617294003736,2.44386428,1946.4,1945.9,15.28581]
[1617294004038,2.44386428,1946.4,1945.9,5.01]
[1617294004039,0.39,1946.1,1945.9,5.01]
[1617294004236,0.14,1946.2,1945.8,5.01]
[1617294004435,0.14,1946.2,1945.9,0.308]
[1617294004636,0.14,1946.2,1945.9,5.318]
[1617294005036,0.14,1946.2,1945.9,5.01]
[1617294005246,0.52,1946.2,1945.9,5.01]
[1617294005658,0.65,1946.0,1945.9,5.01]
[1617294006666,0.65,1946.0,1945.8,13.11829]
[1617294006862,0.65,1946.0,1945.9,14.75]
[1617294007063,0.65,1946.0,1945.9,20.6659]
[1617294007264,0.65,1946.0,1945.9,34.6059]
[1617294007463,0.65,1946.0,1945.9,39.303]
[1617294007663,0.65,1946.0,1945.9,69.303]
[1617294007868,14.1705,1947.1,1945.9,69.303]
[1617294007869,14.1705,1947.1,1946.7,0.39]
[1617294008065,14.1705,1947.1,1946.7,0.28]
[1617294008066,14.3105,1947.1,1946.7,0.28]
[1617294008288,0.14,1947.1,1946.7,6.7672]
[1617294008689,0.54,1947.1,1946.7,6.7672]
[1617294009089,0.4,1946.9,1946.7,6.4872]
[1617294009294,0.4,1946.9,1946.7,14.19202]
[1617294009491,9.35,1946.8,1946.7,6.4872]
[1617294009892,11.384732,1946.8,1946.7,6.4872]
[1617294010391,19.784732,1946.8,1946.7,6.4872]
[1617294010692,8.95,1946.8,1946.7,6.4872]
[1617294010913,0.14,1947.0,1946.7,6.4872]
[1617294011115,0.38,1947.0,1946.7,6.4872]
[1617294012019,10.39,1946.8,1946.3,5.01]
[1617294012215,10.39,1946.8,1946.2,7.70666]
[1617294012216,0.39,1946.5,1946.2,7.70666]
[1617294012716,0.14,1946.6,1946.2,7.98666]
[1617294012917,0.14,1946.6,1946.2,7.96966]
[1617294013115,0.55,1946.7,1946.2,7.96966]
[1617294013952,0.14,1946.7,1946.4,5.01]
[1617294014252,2.55,1947.2,1946.5,0.4]
[1617294014253,0.4,1947.0,1946.5,0.4]
[1617294014454,0.14,1946.9,1946.5,8.10572]
[1617294014656,0.14,1946.9,1946.5,7.70572]
[1617294014657,0.54,1946.9,1946.5,7.70572]
[1617294014851,0.54,1946.9,1946.5,5.01]
[1617294015054,0.41,1946.7,1946.5,5.01]
[1617294015254,0.41,1946.7,1946.4,0.28]
[1617294015456,2.96,1946.7,1946.4,0.28]
[1617294015654,2.96,1946.7,1946.4,5.01]
[1617294015854,5.00524215,1946.7,1946.1,10.2731]
[1617294016065,2.96,1946.7,1946.2,0.38]
[1617294016669,0.39,1946.6,1946.1,10.5531]
[1617294016867,0.39,1946.6,1945.6,8.9089323]
[1617294016868,0.38,1946.3,1945.7,0.48406894]
[1617294017173,3.4037713,1946.3,1945.5,0.09406894]
[1617294017367,0.39,1946.1,1945.7,10.27728]
[1617294017867,0.14,1946.2,1945.7,10.67728]
[1617294018682,0.38,1946.1,1945.6,0.28]
[1617294018884,0.38,1946.1,1945.5,0.41]
[1617294019086,0.53,1946.0,1945.4,0.28]
[1617294019383,0.53,1946.0,1945.4,0.66]
[1617294019688,3.0237713,1945.8,1945.3,0.09406894]
[1617294019985,3.4137713,1945.6,1945.1,1.0]
[1617294020185,6.853,1945.5,1945.1,1.0]
[1617294020584,9.8767713,1945.5,1945.1,1.0]
[1617294020785,10.0,1945.4,1945.1,1.0]
[1617294021088,0.38,1944.9,1944.5,0.09406894]
[1617294021321,0.38,1944.9,1944.3,0.49406894]
[1617294021322,3.01866422,1944.8,1944.3,0.49406894]
[1617294021618,3.01866422,1944.5,1944.1,1.09406894]
[1617294021820,0.14,1944.5,1944.1,1.41]
[1617294022417,3.56866422,1944.5,1944.1,1.0]
[1617294022620,1.0055,1944.6,1944.1,1.0]
[1617294022919,2.55,1944.5,1944.3,0.39]
[1617294023217,8.6,1944.5,1944.4,0.4]
[1617294023416,8.6,1944.5,1944.1,1.0]
[1617294023618,2.55,1944.5,1944.3,0.39]
[1617294024036,2.55,1944.5,1944.4,0.39]
[1617294024748,2.55,1944.5,1944.4,6.6]
[1617294025136,2.55,1944.5,1944.4,15.85]
[1617294025337,2.55,1944.5,1944.4,20.57]
[1617294025535,2.55,1944.5,1944.4,11.32]
[1617294026043,2.55,1944.5,1944.4,10.12]
[1617294026670,2.55,1944.5,1944.4,11.32]
[1617294026966,2.55,1944.5,1944.4,5.4]
[1617294027166,2.55,1944.5,1944.4,5.01]
[1617294027471,2.55,1944.5,1944.2,10.28396]
[1617294027671,2.55,1944.5,1944.2,10.66396]
[1617294027874,2.55,1944.5,1944.4,0.39]
[1617294028069,2.55,1944.5,1944.4,16.92315]
[1617294028268,2.55,1944.5,1944.4,19.90315]
[1617294028473,2.55,1944.5,1944.4,21.10315]
[1617294028670,2.55,1944.5,1944.4,29.10315]
[1617294029070,2.55,1944.5,1944.4,21.26315]
[1617294029289,2.55,1944.5,1944.2,10.68396]
[1617294029688,2.55,1944.5,1944.2,10.28396]
[1617294030391,5.1,1944.5,1944.3,8.11391]
[1617294030692,5.1,1944.5,1944.3,10.39391]
[1617294030888,5.1,1944.5,1944.3,18.39391]
[1617294031087,5.1,1944.5,1944.4,5.01]
[1617294031488,5.1,1944.5,1944.4,8.9]
[1617294032410,5.1,1944.5,1944.4,5.01]
[1617294033912,5.1,1944.5,1944.1,1.0]
[1617294034213,5.49,1944.5,1944.1,1.0]
[1617294034638,5.1,1944.5,1944.1,1.0]
[1617294035341,0.39,1944.2,1944.1,6.01]
[1617294035538,5.1,1944.5,1944.1,1.0]
[1617294035739,10.0,1944.3,1944.1,1.0]
[1617294036038,22.26,1944.2,1944.1,1.0]
[1617294036745,22.26,1944.2,1943.4,1.03145998]
[1617294036746,29.8,1944.1,1943.4,1.03145998]
[1617294036941,0.41,1943.6,1943.3,0.28]
[1617294037170,0.41,1943.6,1943.1,1.53657655]
[1617294037368,0.4,1943.4,1943.1,1.53657655]
[1617294037673,0.41,1943.6,1943.1,1.53657655]
[1617294037674,2.76,1943.6,1943.2,7.71893]
[1617294037973,2.55,1943.4,1943.2,7.71893]
[1617294038370,2.55,1943.4,1943.3,0.4]
[1617294038569,2.55,1943.4,1943.2,7.71893]
[1617294039372,12.55,1943.4,1943.2,7.71893]
[1617294039987,9.69,1943.3,1943.2,5.01]
[1617294040189,16.28,1943.2,1942.6,1.42577872]
[1617294040388,3.08016328,1943.1,1942.6,1.42577872]
[1617294040595,3.22016328,1943.1,1942.6,0.39]
[1617294040796,3.08016328,1942.6,1942.1,1.0]
[1617294041021,0.39,1942.3,1942.1,1.0]
[1617294041217,43.8149,1942.7,1942.1,1.0]
[1617294041719,36.49869018,1942.6,1941.6,13.58692741]
[1617294041920,0.14,1942.4,1941.8,0.287]
[1617294042122,0.41,1941.9,1941.8,0.28]
[1617294042333,0.41,1941.9,1941.1,1.0]
[1617294042535,0.41,1941.7,1941.2,0.09406894]
[1617294042736,1.1614,1942.3,1941.2,0.09406894]
[1617294042737,0.14,1942.0,1941.2,0.38]
[1617294042937,10.61932864,1942.6,1941.4,0.09406894]
[1617294043248,14.1581,1942.8,1941.6,0.301]
[1617294043249,0.14,1942.7,1941.6,0.301]
[1617294043436,0.14,1942.4,1941.7,0.09406894]
[1617294043740,10.61932864,1943.0,1941.7,0.28]
[1617294043741,0.38,1942.1,1941.7,0.28]
[1617294043935,0.4,1942.2,1941.4,3.16301246]
[1617294044135,0.4,1942.1,1941.6,10.29592]
[1617294044337,10.61932864,1943.0,1941.7,0.09406894]
[1617294044535,0.294,1942.7,1941.7,0.09406894]
[1617294044735,0.294,1942.7,1942.0,0.39]
[1617294044945,0.4,1942.9,1942.0,0.53]
[1617294045141,0.4,1942.9,1942.0,6.5752]
[1617294045444,0.4,1942.9,1942.7,5.01]
[1617294045445,2.55,1942.9,1942.7,5.01]
[1617294045642,2.55,1942.9,1942.5,5.01]
[1617294045844,2.55,1942.9,1942.4,5.53]
[1617294046042,0.4,1942.8,1942.4,5.15]
[1617294046242,0.4,1942.8,1942.4,5.01]
[1617294046648,0.39,1942.6,1942.4,5.01]
[1617294047042,0.39,1942.8,1942.4,5.01]
[1617294047343,2.93,1942.9,1942.4,5.01]
[1617294047566,0.4,1942.7,1942.4,5.01]
[1617294048371,2.55,1942.9,1942.2,10.29509]
[1617294048372,0.39,1942.6,1942.2,10.29509]
[1617294049369,7.15,1942.2,1942.1,15.30517]
[1617294049569,6.75,1942.2,1942.1,5.01]
[1617294049768,6.75,1942.2,1942.0,5.01]
[1617294049969,6.75,1942.2,1941.8,10.29727]
[1617294050192,0.39,1942.0,1941.4,0.09406894]
[1617294050494,0.68,1942.3,1941.6,10.29039]
[1617294050693,0.28,1942.3,1941.7,3.16301246]
[1617294051296,0.28,1942.3,1941.9,5.01]
[1617294051492,29.17842864,1942.9,1941.9,5.01]
[1617294051493,0.4,1942.6,1941.9,5.01]
[1617294051694,0.4,1942.6,1942.2,7.72251]
[1617294051894,0.39,1942.3,1941.9,10.2968]
[1617294052093,0.39,1942.3,1941.8,0.09406894]
[1617294052294,0.39,1942.3,1941.7,0.09406894]
[1617294052494,0.41,1942.1,1941.6,23.30039]
[1617294052693,0.39,1942.3,1941.6,10.29039]
[1617294052694,0.4,1942.2,1941.6,10.29039]
[1617294052921,0.41,1942.0,1941.7,7.72457]
[1617294053123,2.55,1942.3,1941.7,7.72457]
[1617294053425,2.55,1942.3,1941.7,8.20863894]
[1617294053621,2.55,1942.3,1941.7,10.57863894]
[1617294053821,2.55,1942.3,1941.7,19.95593894]
[1617294054122,0.39,1942.2,1941.7,30.20593894]
[1617294054422,2.55,1942.3,1941.7,22.48136894]
[1617294054728,2.55,1942.3,1941.7,33.74238434]
[1617294055643,2.55,1942.3,1942.0,10.29703]
[1617294056946,2.55,1942.3,1942.0,23.30703]
[1617294057147,2.95,1942.3,1942.0,15.30703]
[1617294057447,2.93,1942.3,1942.2,5.01]
[1617294057648,0.38,1942.2,1942.0,5.01]
[1617294057948,0.38,1942.2,1941.6,15.30039]
[1617294057949,0.39,1942.1,1941.6,15.30039]
[1617294058187,2.94,1942.3,1941.8,5.01]
[1617294058485,2.94,1942.3,1941.6,15.30039]
[1617294058691,2.94,1942.3,1941.8,7.72439]
[1617294058885,0.39,1942.2,1941.8,7.72439]
[1617294059386,2.55,1942.3,1941.8,7.72439]
[1617294059588,0.4,1942.1,1941.8,7.72439]
[1617294059985,0.4,1942.1,1941.6,10.29039]
[1617294060188,2.95,1942.1,1941.6,10.29039]
[1617294060386,2.95,1942.1,1941.6,18.29039]
[1617294060588,2.55,1942.1,1941.6,23.30039]
[1617294060789,2.55,1942.1,1941.7,0.09406894]
[1617294061486,2.94,1942.1,1941.8,7.72436]
[1617294061687,2.94,1942.1,1941.6,15.30039]
[1617294061888,2.55,1942.1,1941.6,15.30039]
[1617294062086,2.55,1942.1,1941.6,18.16039]
[1617294062387,2.55,1942.1,1941.7,2.0595132]
[1617294062588,2.55,1942.1,1941.9,7.72276]
[1617294062787,2.55,1942.1,1942.0,5.01]
[1617294063420,2.55,1942.1,1942.0,7.91]
[1617294063830,2.55,1942.1,1942.0,2.9]
[1617294064024,2.93,1942.1,1941.9,9.7822749]
[1617294064535,24.97894352,1942.0,1941.9,7.72276]
[1617294064728,24.97894352,1942.0,1941.8,10.29701]
[1617294065223,3.66,1941.9,1941.8,10.29701]
[1617294065423,2.55,1942.1,1941.8,10.29701]
[1617294065723,2.95,1942.1,1941.8,10.29701]
[1617294065940,0.39,1941.9,1941.8,10.29701]
[1617294066143,12.95,1942.1,1941.8,10.29701]
[1617294066144,2.55,1942.1,1941.8,10.29701]
[1617294066452,2.94,1942.1,1941.8,10.29701]
[1617294066644,2.55,1942.1,1941.8,12.3569641]
[1617294067646,5.1,1942.1,1941.9,2.5743073]
[1617294067945,5.1,1942.1,1941.9,18.2987973]
[1617294068446,5.1,1942.1,1942.0,5.01]
[1617294068663,5.1,1942.1,1942.0,8.49]
[1617294068866,5.1,1942.1,1942.0,11.04082157]
[1617294069069,2.55,1942.3,1942.1,20.45]
[1617294069266,15.6386,1943.0,1942.3,10.0]
[1617294069267,16.0386,1943.0,1942.3,10.0]
[1617294069469,15.6386,1943.0,1942.3,17.69]
[1617294069666,15.6386,1943.0,1942.4,5.01]
[1617294069966,14.4468,1943.1,1942.5,5.01]
[1617294070365,14.4468,1943.1,1942.5,11.7984]
[1617294070565,14.4468,1943.1,1942.7,7.72]
[1617294070767,14.4468,1943.1,1942.8,2.0586645]
[1617294071191,14.4468,1943.1,1942.8,7.0686645]
[1617294071192,14.0568,1943.1,1942.8,7.0686645]
[1617294071396,14.0568,1943.1,1942.8,2.0586645]
[1617294071593,14.4368,1943.1,1942.8,2.0586645]
[1617294071791,0.39,1943.0,1942.8,12.3519945]
[1617294072395,14.0568,1943.1,1942.8,20.3519945]
[1617294072692,6.55,1943.4,1942.8,34.8319945]
[1617294072892,2.55,1943.4,1942.9,19.75]
[1617294073092,2.55,1943.4,1942.9,34.90446894]
[1617294073592,2.55,1943.4,1943.1,5.01]
[1617294074243,2.55,1943.4,1943.2,5.01]
[1617294074437,2.5,1943.4,1943.2,5.01]
[1617294074638,2.5,1943.4,1943.3,10.56]
[1617294074834,2.5,1943.4,1943.3,13.6802]
[1617294075034,5.05,1943.4,1943.3,13.6802]
[1617294075238,5.05,1943.4,1943.3,17.0802]
[1617294075534,5.05,1943.4,1943.3,24.79694]
[1617294076134,5.05,1943.4,1943.3,20.33694]
[1617294076336,5.43,1943.4,1943.3,16.93694]
[1617294076949,5.43,1943.4,1943.3,9.2202]
[1617294077249,5.44,1943.4,1943.2,10.28898]
[1617294078750,5.05,1943.4,1943.2,10.28898]
[1617294079570,5.05,1943.4,1943.2,18.28898]
[1617294079973,5.05,1943.4,1943.2,20.3472791]
[1617294080173,5.05,1943.4,1943.2,23.6672791]
[1617294080374,1.0,1943.9,1943.4,11.85]
[1617294080576,1.0,1943.9,1943.5,17.62198]
[1617294080776,1.0,1943.9,1943.7,7.7165]
[1617294080976,1.0,1943.9,1943.7,22.7842972]
[1617294081179,1.0,1943.9,1943.8,19.31]
[1617294081479,1.0,1943.9,1943.8,20.01]
[1617294081705,1.0,1943.9,1943.8,18.67]
[1617294082304,1.0,1943.9,1943.8,13.01]
[1617294082502,3.5,1943.9,1943.8,13.01]
[1617294082703,3.5,1943.9,1943.7,7.7165]
[1617294083104,3.89,1943.9,1943.7,7.7165]
[1617294083325,7.00855302,1943.9,1943.7,7.7165]
[1617294083915,0.38,1943.8,1943.7,7.7165]
[1617294084110,12.13,1943.8,1943.7,7.7165]
[1617294084320,0.38,1943.8,1943.7,7.7165]
[1617294084721,1.58,1943.8,1943.7,7.7165]
[1617294084922,0.38,1943.8,1943.7,7.7165]
[1617294085523,13.5,1943.9,1943.7,7.7165]
[1617294085524,3.5,1943.9,1943.7,7.7165]
[1617294085726,3.5,1943.9,1943.7,15.7165]
[1617294085924,3.5,1943.9,1943.7,19.6165]
[1617294086158,3.5,1943.9,1943.8,11.61]
[1617294086369,3.5,1943.9,1943.8,14.602]
[1617294086561,3.5,1943.9,1943.8,26.902]
[1617294086770,3.5,1943.9,1943.8,13.892]
[1617294086972,3.88,1943.9,1943.8,9.592]
[1617294087568,10.48,1943.9,1943.7,7.7165]
[1617294087764,13.88,1943.9,1943.7,7.7165]
[1617294088364,5.79,1943.8,1943.7,7.7165]
[1617294088864,6.99,1943.8,1943.7,7.7165]
[1617294089064,5.79,1943.8,1943.7,7.7165]
[1617294089800,0.39,1943.8,1943.7,7.7165]
[1617294089988,2.94,1943.8,1943.7,7.7165]
[1617294090989,6.05855302,1943.8,1943.7,7.7165]
[1617294091189,2.94,1943.8,1943.7,7.7165]
[1617294091388,8.09,1943.8,1943.7,7.7165]
[1617294091992,30.95,1943.7,1943.2,12.89186]
[1617294092206,28.7071,1943.3,1943.2,2.60288]
[1617294092413,38.7071,1943.3,1943.2,2.60288]
[1617294092711,40.9977,1943.3,1943.2,1.963459]
[1617294093607,40.9977,1943.3,1942.8,7.72178]
[1617294093608,0.38,1943.1,1942.8,7.72178]
[1617294094707,0.38,1943.1,1942.8,11.58181]
[1617294095241,0.38,1943.1,1942.8,13.640552]
[1617294095441,0.38,1943.1,1942.8,21.640552]
[1617294095641,0.38,1943.1,1942.8,24.880552]
[1617294095945,10.0,1943.3,1942.9,13.36006]
[1617294096147,10.39,1943.3,1942.9,13.36006]
[1617294096644,0.39,1943.3,1942.9,13.36006]
[1617294097342,2.94,1943.3,1942.9,7.72006]
[1617294097570,0.4,1943.2,1942.9,7.72006]
[1617294097768,9.1,1943.0,1942.9,7.72006]
[1617294097962,17.25,1942.9,1942.0,7.58015786]
[1617294098162,8.9985709,1942.8,1942.0,7.58015786]
[1617294098362,13.6714,1942.8,1942.4,7.7233]
[1617294098561,7.8114,1942.8,1942.4,7.7233]
[1617294098761,2.84,1942.7,1942.4,7.7233]
[1617294098962,12.84,1942.7,1942.4,7.7233]
[1617294099161,13.25,1942.7,1942.4,7.7233]
[1617294099362,0.38,1942.5,1942.4,7.7233]
[1617294099561,3.52,1942.6,1942.4,7.7233]
[1617294099761,3.14,1942.6,1942.4,7.7233]
[1617294100295,10.0,1942.9,1942.4,7.7233]
[1617294100487,0.39,1943.2,1942.4,17.82881178]
[1617294100687,0.39,1943.2,1942.6,5.01]
[1617294101187,0.4,1943.0,1942.5,0.09406894]
[1617294101388,0.41,1942.8,1942.4,0.09406894]
[1617294101591,0.41,1942.8,1942.3,12.3569924]
[1617294101789,0.41,1942.8,1942.6,7.72258]
[1617294101988,5.43,1942.7,1942.6,7.72258]
[1617294102187,10.38,1942.7,1942.6,7.72258]
[1617294102734,1.1413,1943.1,1942.6,7.72258]
[1617294102932,10.0,1942.9,1942.6,7.72258]
[1617294103734,0.39,1942.8,1942.6,7.72258]
[1617294104734,2.94,1942.8,1942.6,7.72258]
[1617294105137,2.55,1942.8,1942.6,7.72258]
[1617294105344,2.55,1942.8,1942.6,17.7815522]
[1617294105536,2.55,1942.8,1942.7,5.01]
[1617294105736,2.55,1942.8,1942.7,8.0]
[1617294106539,2.55,1942.8,1942.7,16.76]
[1617294106745,2.55,1942.8,1942.7,11.07]
[1617294107338,2.55,1942.8,1942.7,11.05333522]
[1617294107648,2.55,1942.8,1942.7,8.07]
[1617294107974,2.55,1942.8,1942.7,5.01]
[1617294108170,2.55,1942.8,1942.6,17.7815522]
[1617294108870,2.55,1942.8,1942.7,5.01]
[1617294109371,2.55,1942.8,1942.6,17.7815522]
[1617294109770,2.55,1942.8,1942.6,15.72258]
[1617294110370,2.94,1942.8,1942.6,15.72258]
[1617294110785,15.88,1942.7,1942.6,7.72258]
[1617294110992,15.5,1942.7,1942.6,7.72258]
[1617294111485,10.0,1942.7,1942.6,7.72258]
[1617294112188,22.4,1942.7,1942.6,7.72258]
[1617294112386,22.8,1942.7,1942.6,7.72258]
[1617294112886,12.95,1942.7,1942.6,7.72258]
[1617294113913,3.52451178,1942.6,1942.3,10.29805]
[1617294114216,3.52451178,1942.6,1941.8,12.96445894]
[1617294114217,0.4,1942.3,1941.8,12.96445894]
[1617294114511,8.121,1942.3,1941.8,12.87039]
[1617294115212,0.4,1942.2,1941.8,12.87039]
[1617294115513,10.4,1942.2,1941.8,12.87039]
[1617294115717,2.86,1942.1,1941.9,7.72458]
[1617294116368,0.037,1942.1,1941.9,7.72458]
[1617294116568,10.0,1942.3,1942.0,5.4]
[1617294116769,10.0,1942.3,1942.1,5.01]
[1617294117464,2.55,1942.7,1942.3,7.72321]
[1617294117665,12.95,1942.7,1942.3,7.72321]
[1617294117864,2.55,1942.7,1942.3,20.73321]
[1617294118065,2.55,1942.7,1942.3,16.11]
[1617294118267,2.55,1942.7,1942.3,13.01]
[1617294118882,2.55,1942.7,1942.5,7.72212]
[1617294119182,2.55,1942.7,1942.5,15.72212]
[1617294119582,5.1,1942.7,1942.5,15.72212]
[1617294119784,15.5,1942.7,1942.5,19.62212]
[1617294120084,9.61828932,1942.6,1942.5,15.72212]
[1617294120286,6.5,1942.6,1942.5,15.72212]
[1617294120985,10.01828932,1942.6,1942.4,10.29616]
[1617294121191,3.68,1942.5,1942.0,10.29955]
[1617294121393,3.11828932,1942.1,1941.4,8.70529]
[1617294121590,0.38,1941.9,1941.5,0.09406894]
[1617294121792,0.38,1941.9,1941.4,3.556]
[1617294122498,3.72,1942.0,1941.4,3.556]
[1617294122693,4.12,1942.0,1941.7,7.7265]
[1617294123089,2.94,1941.9,1941.7,7.7265]
[1617294124220,10.0,1942.0,1941.7,7.7265]
[1617294124822,14.54,1941.8,1941.7,7.7265]
[1617294125025,23.944,1941.8,1941.6,18.30164]
[1617294125224,3.11828932,1941.7,1941.6,8.0]
[1617294125424,4.5,1941.7,1941.6,8.0]
[1617294125926,4.5,1941.7,1941.5,15.72721]
[1617294126128,4.5,1941.7,1941.5,7.72721]
[1617294126569,4.26,1941.6,1941.5,7.72721]
[1617294126769,11.1531,1942.0,1941.5,7.72721]
[1617294126968,2.55,1941.6,1941.5,7.72721]
[1617294127375,2.94,1941.6,1941.5,7.72721]
[1617294127870,2.55,1941.6,1941.5,7.72721]
[1617294128069,2.55,1941.6,1941.5,3.22721]
[1617294128269,6.10762448,1941.6,1941.1,1.0]
[1617294128475,5.49,1941.2,1941.1,0.95]
[1617294128669,14.8739,1941.2,1941.1,0.95]
[1617294129071,9.7739,1941.2,1941.1,0.95]
[1617294129572,9.3839,1941.2,1941.1,0.95]
[1617294129869,19.3839,1941.2,1941.1,0.95]
[1617294130271,19.354185,1941.2,1941.1,0.95]
[1617294132116,0.8268,1941.3,1941.1,8.95]
[1617294132320,0.41,1941.4,1941.1,8.95]
[1617294132518,10.0,1941.5,1941.2,7.72726]
[1617294133019,2.94,1941.6,1941.2,7.72726]
[1617294133217,12.55,1941.6,1941.2,8.0]
[1617294133418,12.55,1941.6,1941.2,11.62]
[1617294133620,0.38,1941.4,1941.3,10.30195]
[1617294133817,0.4,1941.5,1941.3,10.30195]
[1617294134444,2.95,1941.5,1941.3,10.30195]
[1617294134648,2.95,1941.5,1941.4,7.72647]
[1617294134845,6.09762448,1941.5,1941.1,0.95]
[1617294135047,23.85,1941.2,1941.1,0.95]
[1617294137047,10.0,1941.3,1941.1,0.95]
[1617294137249,2.93,1941.5,1941.1,0.95]
[1617294137450,2.55,1941.5,1941.1,0.95]
[1617294137850,2.55,1941.5,1941.1,5.96]
[1617294138352,12.95,1941.5,1941.1,11.25263]
[1617294138558,12.7,1941.2,1941.1,0.95]
[1617294138755,22.7,1941.2,1941.1,0.95]
[1617294138954,23.857,1941.2,1941.1,0.95]
[1617294139157,25.057,1941.2,1941.1,0.95]
[1617294139568,25.057,1941.2,1940.5,7.73041]
[1617294139779,0.4,1940.6,1940.4,3.556]
[1617294140267,12.3521,1940.7,1940.4,3.556]
[1617294141069,12.3521,1940.7,1940.4,11.28661]
[1617294141869,3.8991,1940.7,1940.4,11.28661]
[1617294142092,3.8991,1940.7,1940.4,19.28661]
[1617294142093,2.55,1940.7,1940.4,19.28661]
[1617294142292,2.55,1940.7,1940.4,22.22661]
[1617294142695,2.55,1940.7,1940.6,13.66]
[1617294142996,2.55,1940.7,1940.6,5.01]
[1617294143395,2.55,1940.7,1940.6,23.31405]
[1617294143592,2.55,1940.7,1940.6,27.33405]
[1617294144295,2.55,1940.7,1940.6,27.28405]
[1617294145115,2.55,1940.7,1940.6,30.28405]
[1617294145314,2.55,1940.7,1940.6,27.28405]
[1617294146015,2.55,1940.7,1940.6,30.28405]